[Event "Reykjavik Open 2025"]
[Site "Reykjavik"]
[Date "2025.04.13"]
[Round "6.1"]
[White "Maghsoodloo, Parham"]
[Black "Muradli, Mahammad"]
[Result "1-0"]
[Annotator "TA"]
[ECO "B90"]
[WhiteElo "2684"]
[BlackElo "2588"]
[PlyCount "115"]
[EventDate "2025.04.09"]
[EventType "swiss"]
[EventCountry "ISL"]
[SourceTitle "playchess.com"]
[Source "ChessBase"]
[SourceQuality "1"]
[TimeControl "40/5400+30:1800+30"]

{[%evp 15,115,11,16,0,24,18,27,14,19,16,21,15,16,15,10,14,47,21,55,55,49,50,48,40,61,57,69,58,67,61,115,70,86,57,73,0,0,0,17,0,0,0,0,0,0,0,0,0,48,14,35,18,31,21,33,0,0,0,0,0,0,0,0,0,0,0,66,0,0,0,0,0,0,0,84,0,0,0,0,0,0,0,0,0,0,0,8,24,50,0,56,18,29982,29983,29983,29984,29985,29985,29985,29986,29990,29987]} 1. e4 {[%emt 0:00:02]} c5 {[%emt 0:07:42]} 2. Nf3 {[%emt 0:00:05]} d6 {[%emt 0:00:09]} 3. d4 {[%emt 0:00:08]} cxd4 {[%emt 0:00:06]} 4. Nxd4 {[%emt 0:00:06]} Nf6 {[%emt 0:00:13]} 5. Nc3 {[%emt 0:00:07]} a6 {[%emt 0:00:13]} 6. Be3 {[%emt 0:00:08]} e5 {[%emt 0:00:25]} 7. Nf3 {[%emt 0:00:08]} Be7 {[%emt 0:00:26]} 8. Bc4 {[%emt 0:00:12]} O-O {[%emt 0:00:35]} 9. Bb3 {[%emt 0:03:21] B90: Sicilian Najdorf: Unusual White 6th moves, 6 Be3 Ng4 and 6 Be3 e5.} Nc6 {[%emt 0:09:35]} 10. Qe2 {[%emt 0:01:50]} Na5 {[%emt 0:06:43]} 11. Bg5 {[%emt 0:24:23] White has an edge.} Nxb3 {[%emt 0:04:35]} 12. axb3 {[%emt 0:00:32]} Ne8 $146 {[%emt 0:00:27]} (12... Be6 13. O-O Ng4 14. Bxe7 Qxe7 15. Rfd1 Nf6 16. h3 h6 17. Nh2 Rfd8 18. Rd3 Qc7 {½-½ Ponomarenko,M-Zavrazhnov,A RUS PV12 Cl-C email 2012}) 13. Bxe7 {[%emt 0:08:30]} Qxe7 {[%emt 0:00:02]} 14. Nd5 {[%emt 0:00:07]} Qd8 {[%emt 0:00:19]} 15. O-O {[%emt 0:00:07]} f5 {[%emt 0:12:36]} 16. Rfd1 {[%emt 0:08:17]} f4 {[%emt 0:11:23]} 17. c4 {[%emt 0:07:52][%csl Od5][%cal Bc2c4,Bc4c5][%mdl 32] Strong Square White (d5)} Bg4 {[%emt 0:04:56]} 18. h3 {[%emt 0:05:05]} Bh5 {[%emt 0:00:31]} 19. b4 {[%emt 0:02:06]} Kh8 {[%emt 0:04:23]} 20. c5 {[%emt 0:03:08]} Rc8 $1 {[%emt 0:00:58]} 21. Ra3 {[%emt 0:08:46]} Rc6 {[%emt 0:05:21]} 22. Rad3 {[%emt 0:10:43] White is much more active. The black rooks are passive.} g5 {[%emt 0:05:50]} (22... h6 $14) 23. b3 {[%emt 0:03:57]} Qd7 {[%emt 0:10:55]} 24. cxd6 {[%emt 0:09:42]} (24. Nxe5 Bxe2 25. Nxd7 Rf7 $19) 24... Rxd6 {[%emt 0:03:27]} 25. Qb2 {[%emt 0:00:19]} (25. Nb6 $16 Qc7 26. Nc4 Rxd3 27. Qxd3 (27. Rxd3 b5 $11)) 25... Qg7 $11 {[%emt 0:00:29]} 26. Rc1 {[%emt 0:00:46]} (26. Qxe5 $2 Qxe5 27. Nxe5 Bxd1 28. Rxd1 Nf6 $17) 26... Re6 {[%emt 0:05:06]} 27. Rc8 {[%emt 0:01:29]} g4 {[%emt 0:00:20]} 28. hxg4 {[%emt 0:01:13]} Bxg4 {[%emt 0:00:02] aiming for ...Rg8.} 29. Nh2 {[%emt 0:00:04]} Bh5 {[%emt 0:02:36]} 30. f3 {[%emt 0:01:33]} Rg8 {[%emt 0:01:12]} 31. Rd2 {[%emt 0:00:34][%cal Ob4b5]} Rg6 {[%emt 0:01:42] [#]} (31... Qg3 $11 {was preferable.}) 32. Nc7 $1 {[%emt 0:00:34] A dynamic duo of knights.} Nd6 {[%emt 0:02:39]} (32... Nxc7 $6 33. Rxg8+ Kxg8 34. Rd8+ $16) 33. Rxg8+ {[%emt 0:00:05]} Kxg8 {[%emt 0:00:01]} 34. Qc2 {[%emt 0:00:38]} h6 $1 {[%emt 0:00:25]} 35. Qc5 {[%emt 0:00:47][%cal Oc7d5]} Kh7 $1 {[%emt 0:00:49][%cal Od6e4]} 36. Ne6 {[%emt 0:00:31]} (36. Rxd6 $2 Rxg2+ 37. Kf1 (37. Kh1 $2 Rxh2+ 38. Kxh2 Qg3+ 39. Kh1 Bxf3#) 37... Rb2 $19 (37... Rxh2 $2 38. Qg1 $19)) 36... Rxe6 {[%emt 0:00:45]} 37. Rxd6 {[%emt 0:00:06]} Rg6 {[%emt 0:00:32]} 38. Rxg6 {[%emt 0:00:18]} Kxg6 {[%emt 0:00:09][%mdl 4096] Endgame KQB-KQN} 39. Nf1 {[%emt 0:00:31]} Kh7 {[%emt 0:00:24]} 40. Nd2 {[%emt 0:00:37]} Bf7 {[%emt 0:00:30]} (40... Qd7 $11) 41. Qb6 {[%emt 0:30:59]} (41. Nc4 $14) 41... Bg8 $1 {[%emt 0:30:40]} 42. Nc4 {[%emt 0:00:30]} Bxc4 {[%emt 0:00:00]} 43. bxc4 {[%emt 0:00:00] KQ-KQ} Qe7 {[%emt 0:00:00]} 44. Qa5 {[%emt 0:00:00]} Qd6 {[%emt 0:00:00] [#]} (44... Kg6 $11) 45. Kh2 {[%emt 0:00:00]} (45. c5 $1 $16 {[%cal Rc5d6]} Qd4+ 46. Kh2) 45... Qe7 {[%emt 0:00:00]} 46. Qa1 {[%emt 0:00:00]} Kg6 {[%emt 0:00:00]} 47. c5 {[%emt 0:00:00]} Qh4+ {[%emt 0:00:00]} 48. Kg1 {[%emt 0:00:00]} Kf7 {[%emt 0:00:00]} 49. Qc3 {[%emt 0:00:00]} h5 {[%emt 0:00:00]} 50. Qa1 {[%emt 0:00:00]} Kg6 {[%emt 0:00:00]} 51. Qd1 {[%emt 0:00:00]} (51. Qxe5 $5 Qe1+ $8 52. Kh2 Qh4+ 53. Kg1 $11) 51... Qe7 {[%emt 0:00:00][%cal Oa6a5]} 52. Qd5 {[%emt 0:00:00]} ({White should try} 52. Kf2 $14) 52... Kg5 {[%emt 0:00:00]} ({Black should play} 52... Qh4 $1 $11) 53. Qg8+ {[%emt 0:00:00]} Kh4 $2 {[%emt 0:00:19][%mdl 8192] Loses the game.} (53... Kh6 $11) 54. Qg6 {[%emt 0:00:08] White mates.} Qg5 {[%emt 0:05:17]} 55. Qf7 {[%emt 0:01:01]} Qd8 {[%emt 0:01:11]} 56. Qg7 {[%emt 0:00:49]} Qg5 {[%emt 0:01:00]} 57. Qxb7 {[%emt 0:00:28]} a5 {[%emt 0:00:19]} 58. Qd7 {[%emt 0:00:23] Weighted Error Value: White=0.12 (very precise) /Black=0.25 (precise)   Loses game:     	---       	Black=1      Mistake:       	White=4     	Black=5      Inaccurate:     	White=5     	Black=3      OK:         	White=17    	Black=12     Best:        	White=2     	Black=1      Strong:       	---       	Black=4} 1-0

[Event "Reykjavik Open 2025"]
[Site "Reykjavik"]
[Date "2025.04.13"]
[Round "6.2"]
[White "Banusz, Tamas"]
[Black "Safarli, Eltaj"]
[Result "1/2-1/2"]
[Annotator "ChessBase"]
[ECO "D73"]
[WhiteElo "2592"]
[BlackElo "2617"]
[PlyCount "41"]
[EventDate "2025.04.09"]
[EventType "swiss"]
[EventCountry "ISL"]
[SourceTitle "playchess.com"]
[Source "ChessBase"]
[SourceQuality "1"]
[TimeControl "40/5400+30:1800+30"]

1. Nf3 {[%emt 0:01:43]} d5 {[%emt 0:00:18]} 2. g3 {[%emt 0:00:56]} Nf6 {[%emt 0:01:38]} 3. Bg2 {[%emt 0:00:05]} c5 {[%emt 0:00:39]} 4. O-O {[%emt 0:00:18]} g6 {[%emt 0:00:22]} 5. d4 {[%emt 0:03:21]} cxd4 {[%emt 0:00:14]} 6. Nxd4 {[%emt 0:00:06]} Bg7 {[%emt 0:00:06]} 7. c4 {[%emt 0:02:28]} O-O {[%emt 0:00:07]} 8. cxd5 {[%emt 0:00:28]} Nxd5 {[%emt 0:00:05]} 9. Nb3 {[%emt 0:00:40]} e6 {[%emt 0:18:46]} 10. Nc3 {[%emt 0:12:33]} Nxc3 {[%emt 0:07:44]} 11. bxc3 {[%emt 0:00:02]} Qc7 {[%emt 0:00:14]} 12. Ba3 {[%emt 0:04:19]} Rd8 {[%emt 0:02:13]} 13. Qc2 {[%emt 0:00:10]} Bd7 {[%emt 0:11:41]} 14. Rfd1 {[%emt 0:00:56]} Bc6 {[%emt 0:00:05]} 15. Rxd8+ {[%emt 0:01:09]} Qxd8 {[%emt 0:00:04]} 16. Rd1 {[%emt 0:00:11]} Qc7 {[%emt 0:06:25]} 17. Qd3 {[%emt 0:06:19]} Nd7 {[%emt 0:06:13]} 18. Bd6 {[%emt 0:13:13]} Qb6 {[%emt 0:00:37]} 19. Bxc6 {[%emt 0:00:08]} Qxc6 {[%emt 0:03:07]} 20. Na5 {[%emt 0:00:41]} Qxc3 {[%emt 0:00:37]} 21. Qxc3 {[%emt 0:00:34]} 1/2-1/2

[Event "Reykjavik Open 2025"]
[Site "Reykjavik"]
[Date "2025.04.13"]
[Round "6.3"]
[White "Ivic, Velimir"]
[Black "Ivanchuk, Vasyl"]
[Result "0-1"]
[Annotator "ChessBase"]
[ECO "C88"]
[WhiteElo "2623"]
[BlackElo "2604"]
[PlyCount "133"]
[EventDate "2025.04.09"]
[EventType "swiss"]
[EventCountry "ISL"]
[SourceTitle "playchess.com"]
[Source "ChessBase"]
[SourceQuality "1"]
[TimeControl "40/5400+30:1800+30"]

1. e4 {[%emt 0:00:07]} e5 {[%emt 0:00:12]} 2. Nf3 {[%emt 0:00:34]} Nc6 {[%emt 0:00:05]} 3. Bb5 {[%emt 0:00:31]} a6 {[%emt 0:07:07]} 4. Ba4 {[%emt 0:00:05]} Nf6 {[%emt 0:00:16]} 5. O-O {[%emt 0:00:29]} Be7 {[%emt 0:00:14]} 6. Re1 {[%emt 0:00:52]} b5 {[%emt 0:01:14]} 7. Bb3 {[%emt 0:00:06]} O-O {[%emt 0:02:45]} 8. h3 {[%emt 0:00:52]} Bb7 {[%emt 0:03:27]} 9. d3 {[%emt 0:00:26]} d6 {[%emt 0:00:05]} 10. a3 {[%emt 0:01:43]} Nb8 {[%emt 0:01:11]} 11. Nc3 {[%emt 0:08:17]} Nbd7 {[%emt 0:01:25]} 12. Ne2 {[%emt 0:02:35]} Re8 {[%emt 0:04:26]} 13. Ng3 {[%emt 0:04:07]} Bf8 {[%emt 0:02:56]} 14. Ng5 {[%emt 0:15:46]} d5 {[%emt 0:01:24]} 15. exd5 {[%emt 0:02:32]} Nc5 {[%emt 0:00:16]} 16. c4 {[%emt 0:00:44]} Nxb3 {[%emt 0:00:52]} 17. Qxb3 {[%emt 0:00:05]} c6 {[%emt 0:00:04]} 18. dxc6 {[%emt 0:03:10]} Bxc6 {[%emt 0:00:06]} 19. N5e4 {[%emt 0:07:25]} h6 {[%emt 0:20:33]} 20. Be3 {[%emt 0:01:58]} bxc4 {[%emt 0:00:46]} 21. Nxf6+ {[%emt 0:01:15]} Qxf6 {[%emt 0:00:01]} 22. dxc4 {[%emt 0:00:35]} Qg6 {[%emt 0:00:08]} 23. Rac1 {[%emt 0:07:28]} Re6 {[%emt 0:28:36]} 24. Qc2 {[%emt 0:04:45]} h5 {[%emt 0:00:16]} 25. h4 {[%emt 0:10:58]} Be7 {[%emt 0:08:08]} 26. Qxg6 {[%emt 0:14:23]} Rxg6 {[%emt 0:00:01]} 27. Bd4 {[%emt 0:00:20]} f6 {[%emt 0:06:47]} 28. b4 {[%emt 0:03:53]} Rg4 {[%emt 0:02:06]} 29. b5 {[%emt 0:03:22]} Bxa3 {[%emt 0:05:07]} 30. Ra1 {[%emt 0:01:47]} axb5 {[%emt 0:02:21]} 31. cxb5 {[%emt 0:00:08]} Bb7 {[%emt 0:01:40]} 32. Be3 {[%emt 0:01:04]} Rxh4 {[%emt 0:00:03]} 33. Red1 {[%emt 0:00:35]} Rha4 {[%emt 0:01:42]} 34. Rd7 {[%emt 0:00:45]} Bc8 {[%emt 0:00:06]} 35. Rd8+ {[%emt 0:00:58]} Kh7 {[%emt 0:00:03]} 36. Nxh5 {[%emt 0:00:25]} Kg6 {[%emt 0:01:09]} 37. Ng3 {[%emt 0:00:55]} Bb7 {[%emt 0:00:15]} 38. Rd7 {[%emt 0:00:57]} Bc8 {[%emt 0:00:45]} 39. Rc7 {[%emt 0:00:11]} Bg4 {[%emt 0:00:26]} 40. b6 {[%emt 0:02:26]} Bd6 {[%emt 0:00:03]} 41. Rxa4 {[%emt 0:30:45]} Rxa4 {[%emt 0:30:01]} 42. Ra7 {[%emt 0:00:00]} Rb4 {[%emt 0:00:00]} 43. f3 {[%emt 0:00:00]} Rb1+ {[%emt 0:00:00]} 44. Kh2 {[%emt 0:00:00]} e4 {[%emt 0:00:00]} 45. Ra4 {[%emt 0:00:00]} Bf5 {[%emt 0:00:00]} 46. fxe4 {[%emt 0:00:00]} Be6 {[%emt 0:00:00]} 47. Ra8 {[%emt 0:00:00]} Rb3 {[%emt 0:02:08]} 48. b7 {[%emt 0:01:09]} Be5 {[%emt 0:02:10]} 49. Bf2 {[%emt 0:02:42]} Rxb7 {[%emt 0:00:28]} 50. Ra6 {[%emt 0:00:31]} Bg4 {[%emt 0:00:50]} 51. Ra2 {[%emt 0:00:26]} Rb3 {[%emt 0:00:35]} 52. Ra5 {[%emt 0:00:44]} Rc3 {[%emt 0:00:30]} 53. Rb5 {[%emt 0:00:35]} Ra3 {[%emt 0:00:19]} 54. Rd5 {[%emt 0:00:32]} Rb3 {[%emt 0:00:39]} 55. Ra5 {[%emt 0:00:23]} Kh6 {[%emt 0:00:24]} 56. Rd5 {[%emt 0:00:26]} g6 {[%emt 0:00:27]} 57. Ra5 {[%emt 0:00:28]} Bd7 {[%emt 0:00:17]} 58. Rc5 {[%emt 0:00:25]} Ra3 {[%emt 0:00:37]} 59. Rd5 {[%emt 0:00:47]} Bc6 {[%emt 0:00:18]} 60. Rc5 {[%emt 0:00:01]} Ba8 {[%emt 0:00:08]} 61. Rb5 {[%emt 0:00:47]} Rd3 {[%emt 0:00:13]} 62. Ra5 {[%emt 0:00:10]} Bb7 {[%emt 0:00:49]} 63. Rb5 {[%emt 0:00:04]} Bc8 {[%emt 0:00:56]} 64. Rd5 {[%emt 0:01:17]} Rb3 {[%emt 0:00:13]} 65. Rc5 {[%emt 0:00:28]} Bb7 {[%emt 0:00:12]} 66. Ra5 {[%emt 0:00:30]} Bd6 {[%emt 0:00:21]} 67. Ra4 {[%emt 0:00:47]} 0-1

[Event "Reykjavik Open 2025"]
[Site "Reykjavik"]
[Date "2025.04.13"]
[Round "6.4"]
[White "Larkin, Vladyslav"]
[Black "Lu, Shanglei"]
[Result "0-1"]
[Annotator "ChessBase"]
[ECO "D00"]
[WhiteElo "2449"]
[BlackElo "2618"]
[PlyCount "54"]
[EventDate "2025.04.09"]
[EventType "swiss"]
[EventCountry "ISL"]
[SourceTitle "playchess.com"]
[Source "ChessBase"]
[SourceQuality "1"]
[TimeControl "40/5400+30:1800+30"]

1. d4 {[%emt 0:04:59]} Nf6 {[%emt 0:00:33]} 2. Bg5 {[%emt 0:01:28]} d5 {[%emt 0:00:21]} 3. Nd2 {[%emt 0:01:12]} c5 {[%emt 0:01:46]} 4. dxc5 {[%emt 0:03:41]} e6 {[%emt 0:00:22]} 5. e4 {[%emt 0:07:39]} Bxc5 {[%emt 0:00:46]} 6. Qe2 {[%emt 0:00:54]} h6 {[%emt 0:05:56]} 7. Bxf6 {[%emt 0:14:16]} Qxf6 {[%emt 0:00:23]} 8. O-O-O {[%emt 0:01:51]} O-O {[%emt 0:02:45]} 9. Ngf3 {[%emt 0:01:11]} Nc6 {[%emt 0:01:24]} 10. Kb1 {[%emt 0:09:24]} a5 {[%emt 0:03:38]} 11. g4 {[%emt 0:13:45]} a4 {[%emt 0:01:53]} 12. c3 {[%emt 0:05:30]} a3 {[%emt 0:03:42]} 13. Nb3 {[%emt 0:01:33]} b6 {[%emt 0:03:27]} 14. e5 {[%emt 0:10:26]} Qg6+ {[%emt 0:04:48]} 15. Qc2 {[%emt 0:00:04]} Qxg4 {[%emt 0:07:49]} 16. Nfd4 {[%emt 0:02:17]} Nxe5 {[%emt 0:00:34]} 17. Re1 {[%emt 0:00:23]} Qf4 {[%emt 0:07:17]} 18. Rg1 {[%emt 0:03:11]} axb2 {[%emt 0:00:54]} 19. Re3 {[%emt 0:01:07]} Rd8 {[%emt 0:03:48]} 20. Reg3 {[%emt 0:04:07]} Bf8 {[%emt 0:00:25]} 21. Nd2 {[%emt 0:00:36]} Ba6 {[%emt 0:01:43]} 22. Bh3 {[%emt 0:01:49]} Nc4 {[%emt 0:05:23]} 23. Nxc4 {[%emt 0:01:03]} Bxc4 {[%emt 0:00:08]} 24. Rg4 {[%emt 0:02:43]} Qxh2 {[%emt 0:03:54]} 25. Nxe6 {[%emt 0:06:58]} fxe6 {[%emt 0:00:09]} 26. R4g3 {[%emt 0:00:34]} Rxa2 {[%emt 0:01:16]} 27. Bxe6+ {[%emt 0:00:09]} Kh8 {[%emt 0:00:04]} 0-1

[Event "Reykjavik Open 2025"]
[Site "Reykjavik"]
[Date "2025.04.13"]
[Round "6.5"]
[White "Gupta, Abhijeet"]
[Black "Kjartansson, Gudmundur"]
[Result "1-0"]
[Annotator "ChessBase"]
[ECO "A50"]
[WhiteElo "2576"]
[BlackElo "2450"]
[PlyCount "127"]
[EventDate "2025.04.09"]
[EventType "swiss"]
[EventCountry "ISL"]
[SourceTitle "playchess.com"]
[Source "ChessBase"]
[SourceQuality "1"]
[TimeControl "40/5400+30:1800+30"]

1. d4 {[%emt 0:00:17]} Nf6 {[%emt 0:00:09]} 2. c4 {[%emt 0:00:09]} e6 {[%emt 0:00:06]} 3. Bf4 {[%emt 0:00:18]} d5 {[%emt 0:00:38]} 4. cxd5 {[%emt 0:00:07]} Nxd5 {[%emt 0:00:07]} 5. Bg3 {[%emt 0:00:07]} c5 {[%emt 0:00:58]} 6. e4 {[%emt 0:00:09]} Nf6 {[%emt 0:01:38]} 7. Nd2 {[%emt 0:00:07]} Nc6 {[%emt 0:04:37]} 8. e5 {[%emt 0:07:17]} Nd5 {[%emt 0:02:00]} 9. Ngf3 {[%emt 0:03:11]} Nxd4 {[%emt 0:04:08]} 10. Nxd4 {[%emt 0:01:55]} cxd4 {[%emt 0:00:04]} 11. Bc4 {[%emt 0:03:17]} Nb6 {[%emt 0:09:23]} 12. Bd3 {[%emt 0:00:33]} Bd7 {[%emt 0:01:49]} 13. O-O {[%emt 0:04:39]} Bc6 {[%emt 0:00:27]} 14. Rc1 {[%emt 0:01:06]} Rc8 {[%emt 0:09:39]} 15. a3 {[%emt 0:00:44]} h5 {[%emt 0:08:31]} 16. h3 {[%emt 0:00:36]} Be7 {[%emt 0:03:28]} 17. Ne4 {[%emt 0:01:03]} Qd5 {[%emt 0:01:11]} 18. Re1 {[%emt 0:01:07]} a6 {[%emt 0:12:16]} 19. Nd6+ {[%emt 0:14:46]} Bxd6 {[%emt 0:00:10]} 20. Be4 {[%emt 0:00:04]} Qb5 {[%emt 0:00:58]} 21. exd6 {[%emt 0:00:10]} O-O {[%emt 0:08:03]} 22. Bd3 {[%emt 0:07:58]} Qd5 {[%emt 0:00:44]} 23. Rxc6 {[%emt 0:00:48]} Rxc6 {[%emt 0:03:06]} 24. Re5 {[%emt 0:00:05]} Qa2 {[%emt 0:00:13]} 25. Rg5 {[%emt 0:04:16]} Nd7 {[%emt 0:04:06]} 26. Qxh5 {[%emt 0:02:45]} f5 {[%emt 0:00:08]} 27. Qh6 {[%emt 0:09:58]} Rf7 {[%emt 0:01:08]} 28. Qh4 {[%emt 0:00:30]} Rc1+ {[%emt 0:06:31]} 29. Kh2 {[%emt 0:01:50]} Qa1 {[%emt 0:00:07]} 30. Bf4 {[%emt 0:00:58]} Rh1+ {[%emt 0:00:07]} 31. Kg3 {[%emt 0:00:03]} Nf6 {[%emt 0:01:38]} 32. Be5 {[%emt 0:02:59]} Qd1 {[%emt 0:01:07]} 33. Qxd4 {[%emt 0:02:25]} Ne4+ {[%emt 0:01:21]} 34. Bxe4 {[%emt 0:06:03]} Qxd4 {[%emt 0:00:21]} 35. Bxd4 {[%emt 0:00:06]} fxe4 {[%emt 0:04:08]} 36. Re5 {[%emt 0:00:34]} Rd7 {[%emt 0:01:55]} 37. Rxe6 {[%emt 0:00:05]} Kf7 {[%emt 0:00:27]} 38. Rxe4 {[%emt 0:00:06]} Rxd6 {[%emt 0:00:21]} 39. Rf4+ {[%emt 0:00:14]} Kg8 {[%emt 0:00:45]} 40. Rg4 {[%emt 0:00:37]} Rd7 {[%emt 0:00:44]} 41. Bc3 {[%emt 0:30:10]} Rhd1 {[%emt 0:33:15]} 42. h4 {[%emt 0:00:43]} R1d5 {[%emt 0:00:00]} 43. f3 {[%emt 0:00:00]} Kf8 {[%emt 0:00:00]} 44. Rf4+ {[%emt 0:00:00]} Kg8 {[%emt 0:00:00]} 45. Re4 {[%emt 0:00:00]} R7d6 {[%emt 0:00:00]} 46. Kf2 {[%emt 0:00:00]} Kf7 {[%emt 0:00:00]} 47. g4 {[%emt 0:00:00]} g6 {[%emt 0:00:00]} 48. Rf4+ {[%emt 0:00:00]} Kg8 {[%emt 0:00:00]} 49. Kg3 {[%emt 0:00:00]} Rd7 {[%emt 0:00:00]} 50. Re4 {[%emt 0:00:00]} Kf8 {[%emt 0:00:00]} 51. Re6 {[%emt 0:00:00]} g5 {[%emt 0:00:00]} 52. hxg5 {[%emt 0:00:00]} Rxg5 {[%emt 0:00:00]} 53. f4 {[%emt 0:00:00]} Rd3+ {[%emt 0:00:00]} 54. Kh4 {[%emt 0:00:00]} Rg8 {[%emt 0:00:00]} 55. g5 {[%emt 0:00:00]} Kf7 {[%emt 0:00:06]} 56. f5 {[%emt 0:00:00]} Rc8 {[%emt 0:00:14]} 57. g6+ {[%emt 0:00:00]} Kf8 {[%emt 0:00:07]} 58. Re4 {[%emt 0:00:00]} Rf3 {[%emt 0:01:43]} 59. f6 {[%emt 0:00:00]} Rcxc3 {[%emt 0:01:26]} 60. bxc3 {[%emt 0:00:00]} Rxf6 {[%emt 0:00:05]} 61. Kg5 {[%emt 0:00:00]} Rc6 {[%emt 0:01:41]} 62. Kh6 {[%emt 0:00:00]} Rc8 {[%emt 0:01:26]} 63. Kh7 {[%emt 0:00:00]} Rc7+ {[%emt 0:00:02]} 64. Kh8 {[%emt 0:00:00]} 1-0

[Event "Reykjavik Open 2025"]
[Site "Reykjavik"]
[Date "2025.04.13"]
[Round "6.6"]
[White "Gorshtein, Ido"]
[Black "Garifullina, Leya"]
[Result "1/2-1/2"]
[Annotator "ChessBase"]
[ECO "A20"]
[WhiteElo "2557"]
[BlackElo "2459"]
[PlyCount "113"]
[EventDate "2025.04.09"]
[EventType "swiss"]
[EventCountry "ISL"]
[SourceTitle "playchess.com"]
[Source "ChessBase"]
[SourceQuality "1"]
[TimeControl "40/5400+30:1800+30"]

1. c4 {[%emt 0:02:34]} e5 {[%emt 0:00:12]} 2. g3 {[%emt 0:00:08]} c6 {[%emt 0:00:05]} 3. d4 {[%emt 0:00:14]} e4 {[%emt 0:00:06]} 4. a3 {[%emt 0:00:06]} d5 {[%emt 0:00:24]} 5. Nc3 {[%emt 0:00:10]} Be7 {[%emt 0:05:47]} 6. Bg2 {[%emt 0:01:11]} Nf6 {[%emt 0:01:36]} 7. f3 {[%emt 0:00:19]} exf3 {[%emt 0:01:18]} 8. Nxf3 {[%emt 0:00:07]} O-O {[%emt 0:01:15]} 9. O-O {[%emt 0:00:08]} dxc4 {[%emt 0:08:31]} 10. e4 {[%emt 0:00:16]} Bg4 {[%emt 0:00:54]} 11. Be3 {[%emt 0:01:20]} Nbd7 {[%emt 0:01:37]} 12. h3 {[%emt 0:05:57]} Bxf3 {[%emt 0:03:18]} 13. Qxf3 {[%emt 0:02:40]} Ne8 {[%emt 0:02:12]} 14. h4 {[%emt 0:12:49]} Nc7 {[%emt 0:08:23]} 15. Rad1 {[%emt 0:03:31]} Qe8 {[%emt 0:05:38]} 16. Kh1 {[%emt 0:06:45]} Rd8 {[%emt 0:02:42]} 17. Qg4 {[%emt 0:12:19]} Kh8 {[%emt 0:03:47]} 18. h5 {[%emt 0:05:40]} c5 {[%emt 0:05:22]} 19. h6 {[%emt 0:00:50]} g6 {[%emt 0:00:23]} 20. e5 {[%emt 0:08:18]} cxd4 {[%emt 0:01:53]} 21. e6 {[%emt 0:05:26]} Nxe6 {[%emt 0:03:33]} 22. Bxd4+ {[%emt 0:00:09]} Nxd4 {[%emt 0:00:38]} 23. Qxd4+ {[%emt 0:00:13]} f6 {[%emt 0:01:12]} 24. Rde1 {[%emt 0:03:56]} g5 {[%emt 0:06:27]} 25. Bd5 {[%emt 0:04:43]} Bc5 {[%emt 0:03:40]} 26. Qxc4 {[%emt 0:00:47]} Qh5+ {[%emt 0:02:49]} 27. Kg2 {[%emt 0:00:07]} b6 {[%emt 0:02:59]} 28. Rh1 {[%emt 0:09:46]} Qg6 {[%emt 0:00:35]} 29. Be4 {[%emt 0:01:37]} Ne5 {[%emt 0:01:34]} 30. Qe2 {[%emt 0:00:24]} f5 {[%emt 0:02:12]} 31. Bf3 {[%emt 0:04:40]} Rfe8 {[%emt 0:03:14]} 32. Rd1 {[%emt 0:01:11]} Rxd1 {[%emt 0:01:29]} 33. Qxd1 {[%emt 0:02:59]} g4 {[%emt 0:04:36]} 34. Bd5 {[%emt 0:01:45]} f4 {[%emt 0:00:47]} 35. gxf4 {[%emt 0:01:26]} Nd3 {[%emt 0:00:15]} 36. Rf1 {[%emt 0:00:53]} Re3 {[%emt 0:01:30]} 37. Be4 {[%emt 0:01:59]} Qh5 {[%emt 0:00:23]} 38. Rh1 {[%emt 0:00:10]} Nxf4+ {[%emt 0:00:06]} 39. Kf1 {[%emt 0:00:05]} Rd3 {[%emt 0:07:25]} 40. Rxh5 {[%emt 0:01:51]} Rxd1+ {[%emt 0:00:05]} 41. Nxd1 {[%emt 0:30:04]} Nxh5 {[%emt 0:30:04]} 42. Kg2 {[%emt 0:00:00]} Bd4 {[%emt 0:00:00]} 43. Bf5 {[%emt 0:00:00]} Nf6 {[%emt 0:00:00]} 44. Nf2 {[%emt 0:00:00]} Bxf2 {[%emt 0:00:00]} 45. Kxf2 {[%emt 0:00:00]} Ng8 {[%emt 0:00:00]} 46. Bxg4 {[%emt 0:00:00]} Nxh6 {[%emt 0:00:00]} 47. Bh3 {[%emt 0:00:00]} Kg7 {[%emt 0:00:00]} 48. Ke3 {[%emt 0:00:00]} Kf6 {[%emt 0:00:00]} 49. Ke4 {[%emt 0:00:00]} Nf7 {[%emt 0:00:00]} 50. Kd5 {[%emt 0:00:00]} Ne5 {[%emt 0:00:00]} 51. Bf1 {[%emt 0:00:00]} h5 {[%emt 0:00:00]} 52. Kd6 {[%emt 0:00:00]} h4 {[%emt 0:00:00]} 53. Kc7 {[%emt 0:00:00]} Nf3 {[%emt 0:00:00]} 54. Kb7 {[%emt 0:00:00]} Nd2 {[%emt 0:00:00]} 55. Bh3 {[%emt 0:00:00]} Nc4 {[%emt 0:00:00]} 56. Kxa7 {[%emt 0:00:00]} Nxb2 {[%emt 0:00:00]} 57. Bf1 {[%emt 0:00:35]} 1/2-1/2